Workbook

Sheet Menu

Sheet MIDIA
B12: Cadastro de Tipos de Mídias Insira tipos de mídias usadas em sua empresa | D12: Cadastro de Mídias Utilizadas Insira as mídias usadas em sua empresa
B13: Tipo de Mídia | D13: Mídia | E13: Tipo de Mídia | F13: Observações
B15: Online | D15: Redes Sociais | E15: Online
B16: Offline | D16: Revistas | E16: Offline
D17: Jornais | E17: Offline
D18: Loja Física | E18: Offline
D19: Site | E19: Online

Sheet PRODUTO
B12: Produtos Insira as informações relacionadas aos seus produtos. | E12: Praça - Localização e Canais Insira as informações relacionadas a Localização e aos Canais de Venda
B14: O que o cliente espera dos seus produtos / serviços? | C14: Sorvetes gostosos e deliciosos. | E14: Em quais locais (ou tipo de mídia) os clientes procuram seus produtos? | G14: Internet (site, redes sociais)
B16: Qual a imagem o produto/serviço quer passar? | C16: Refrescancia e saborosos. | E16: Em qual cidade e bairro sua empresa está localizada? | G16: Pederneiras-SP, Bairro Euclydes Pinheiro
B18: Quais atributos eles precisam ter? | C18: Sorvetes gelados e saborosos. | E18: Como você pode acessar canais de distribuição? | G18: Fazendo parcerias.
B20: Como pretende trabalhar essa marca? | C20: Disponibilizando canais de vendas online e facilidade na entrega ao cliente. | E20: Qual o seu foco geográfico (internacional, nacional, regional, estadual, municipal, de bairro, local)? | G20: Nacional.
B22: Como eles serão usados pelo cliente? | C22: Serão apreciados em suas sobremesas. | E22: Quais são os seus canais de venda? | G22: Internet
B24: Quais são os principais concorrentes do seus produtos/serviços? | C24: Sorveterias diversas. | E24: Onde seus concorrentes estão? | G24: Sudeste do país.
B26: Preço Insira as suas estratégias relacionadas aos preços dos seus produtos/serviços.
B28: Sua estratégia de vendas visa grande demanda? | C28: Concordo totalmente | D28: =IF(C28="","",IF(C28="Concordo totalmente",5,IF(C28="Concordo parcialmente",4,IF(C28="Não concordo nem discordo",3,IF(C28="Discordo parcialmente",2,1))))) -> 5 | E28: Estratégia de Preço Definida foi: | G28: =IF(SUM(D28,D30,D32,D34,D36)=0,"",IF(AND(D36>3,D32>3,D30<3),"Estratégia Premium",IF(AND(D36>3,D34>3,D30<3),"Estratégia Valor Alto",IF(AND(D36>3,D34>3,D30>3),"Estratégia Valor Supremo",IF(AND(D36<=3,D34>3,D30<3),"Estratégia Alto Preço",IF(AND(D32>3,D30=3,D28<3),"Estratégia Médio Preço",IF(AND(D30>3,D36<=3,D34>3),"Estratégia Valor Médio",IF(AND(D34>3,D36<3,D30>3),"Estratégia de Desconto",IF(AND(D36<3,D32<3,D30<3),"Estratégia de Falsa Economia",IF(AND(D36<3,D32<3,D30>3),"Estratégia de Economia","")))))))))) -> Estratégia Valor Alto
B30: O cliente é fortemente influenciado pelo preço? | C30: Discordo parcialmente | D30: =IF(C30="","",IF(C30="Concordo totalmente",5,IF(C30="Concordo parcialmente",4,IF(C30="Não concordo nem discordo",3,IF(C30="Discordo parcialmente",2,1))))) -> 2 | E30: Visão | F30: Preço Alto | G30: Preço Médio | H30: Preço Baixo
B32: O cliente valoriza a qualidade do produto em detrimento do preço? | C32: Discordo totalmente | D32: =IF(C32="","",IF(C32="Concordo totalmente",5,IF(C32="Concordo parcialmente",4,IF(C32="Não concordo nem discordo",3,IF(C32="Discordo parcialmente",2,1))))) -> 1 | E32: Qualidade Alta | F32: Estratégia Premium | G32: Estratégia Valor Alto | H32: Estratégia Valor Supremo
B34: Sua estratégia visa acelerar a penetração no mercado? | C34: Concordo parcialmente | D34: =IF(C34="","",IF(C34="Concordo totalmente",5,IF(C34="Concordo parcialmente",4,IF(C34="Não concordo nem discordo",3,IF(C34="Discordo parcialmente",2,1))))) -> 4 | E34: Qualidade Média | F34: Estratégia Alto Preço | G34: Estratégia Médio Preço | H34: Estratégia Valor Médio
B36: Sua linha de produtos/serviços é considerada Premium? | C36: Concordo parcialmente | D36: =IF(C36="","",IF(C36="Concordo totalmente",5,IF(C36="Concordo parcialmente",4,IF(C36="Não concordo nem discordo",3,IF(C36="Discordo parcialmente",2,1))))) -> 4 | E36: Qualidade Baixa | F36: Estratégia de Desconto | G36: Estratégia de Falsa Economia | H36: Estratégia de Economia
B38: Estratégia Premium - Para produtos de alta qualidade. Nesse caso, pode-se praticar um preço alto, visando atingir a faixa alta do mercado com uma imagem de prestigio no mercado.
B39: Estratégia de Valor Alto - Para produtos de alta qualidade. Pratica-se um preço médio tentando obter uma rápida penetração no mercado.
B40: Estratégia de Valor Supremo - Produto de alta qualidade a preço baixo. Recomendado para se obter uma rápida introdução no mercado.
B41: Estratégia de Alto Preço - Produto de qualidade média e preço alto. É uma estratégia que valoriza o produto através do preço psicológico, visando lucratividade a curto prazo.
B42: Estratégia de Médio Preço - Preço compatível com a qualidade do produto, objetivando uma participação aceitável no mercado.
B43: Estratégia de Valor Médio - Produto de média qualidade a preço baixo. Recomendado para se obter uma rápida introdução no mercado.
B44: Estratégia de Desconto - Preço alto com qualidade baixa. Tem-se uma vantagem inicial e há uma retirada rápida do mercado.
B45: Estratégia de Falsa Economia - Preço médio para um produto de baixa qualidade. Pose-se com essa estratégia tirar vantagem da marca ou de uma falsa imagem criada.
B46: Estratégia de Economia - Preços baixos e qualidade baixa. Com essa estratégia procura-se vendes grandes quantidades do produto.

Sheet ORÇAMENTO
B12: Promoção - Orçamento Insira os orçamentos previstos para cada mídia cadastrada.
B14: Orçamento | C14: Janeiro | D14: Fevereiro | E14: Março | F14: Abril | G14: Maio | H14: Junho | I14: Julho | J14: Agosto | K14: Setembro | L14: Outubro | M14: Novembro | N14: Dezembro | O14: Total
B15: =IF(MIDIA!D15="","",MIDIA!D15) -> Redes Sociais | C15: 100 | D15: 200 | E15: 150 | F15: 150 | G15: 100 | H15: 100 | I15: 100 | J15: 100 | K15: 100 | L15: 100 | M15: 100 | N15: 100 | O15: =SUM(C15:N15) -> 1400 | AA15: =IFERROR(VLOOKUP(B15,MIDIA!$D$15:$E$30,2,0),"") -> Online
B16: =IF(MIDIA!D16="","",MIDIA!D16) -> Revistas | C16: 50 | D16: 50 | E16: 50 | F16: 50 | G16: 50 | H16: 50 | I16: 50 | J16: 50 | K16: 50 | L16: 50 | M16: 50 | N16: 50 | O16: =SUM(C16:N16) -> 600 | AA16: =IFERROR(VLOOKUP(B16,MIDIA!$D$15:$E$30,2,0),"") -> Offline
B17: =IF(MIDIA!D17="","",MIDIA!D17) -> Jornais | C17: 30 | D17: 30 | E17: 30 | F17: 30 | G17: 30 | H17: 30 | I17: 30 | J17: 30 | K17: 30 | L17: 30 | M17: 30 | N17: 30 | O17: 360 | AA17: =IFERROR(VLOOKUP(B17,MIDIA!$D$15:$E$30,2,0),"") -> Offline
B18: =IF(MIDIA!D18="","",MIDIA!D18) -> Loja Física | C18: 300 | D18: 300 | E18: 300 | F18: 300 | G18: 300 | H18: 300 | I18: 300 | J18: 300 | K18: 300 | L18: 300 | M18: 300 | N18: 300 | O18: 3600 | AA18: =IFERROR(VLOOKUP(B18,MIDIA!$D$15:$E$30,2,0),"") -> Offline
B19: =IF(MIDIA!D19="","",MIDIA!D19) -> Site | C19: 150 | D19: 150 | E19: 150 | F19: 150 | G19: 150 | H19: 150 | I19: 150 | J19: 150 | K19: 150 | L19: 150 | M19: 150 | N19: 150 | O19: 1800 | AA19: =IFERROR(VLOOKUP(B19,MIDIA!$D$15:$E$30,2,0),"") -> Online
B20: =IF(MIDIA!D20="","",MIDIA!D20) ->  | O20: 0 | AA20: =IFERROR(VLOOKUP(B20,MIDIA!$D$15:$E$30,2,0),"") -> 
B21: =IF(MIDIA!D21="","",MIDIA!D21) ->  | O21: 0 | AA21: =IFERROR(VLOOKUP(B21,MIDIA!$D$15:$E$30,2,0),"") -> 
B22: =IF(MIDIA!D22="","",MIDIA!D22) ->  | O22: 0 | AA22: =IFERROR(VLOOKUP(B22,MIDIA!$D$15:$E$30,2,0),"") -> 
B23: =IF(MIDIA!D23="","",MIDIA!D23) ->  | O23: 0 | AA23: =IFERROR(VLOOKUP(B23,MIDIA!$D$15:$E$30,2,0),"") -> 
B24: =IF(MIDIA!D24="","",MIDIA!D24) ->  | O24: 0 | AA24: =IFERROR(VLOOKUP(B24,MIDIA!$D$15:$E$30,2,0),"") -> 
B25: =IF(MIDIA!D25="","",MIDIA!D25) ->  | O25: 0 | AA25: =IFERROR(VLOOKUP(B25,MIDIA!$D$15:$E$30,2,0),"") -> 
B26: =IF(MIDIA!D26="","",MIDIA!D26) ->  | O26: 0 | AA26: =IFERROR(VLOOKUP(B26,MIDIA!$D$15:$E$30,2,0),"") -> 
B27: =IF(MIDIA!D27="","",MIDIA!D27) ->  | O27: 0 | AA27: =IFERROR(VLOOKUP(B27,MIDIA!$D$15:$E$30,2,0),"") -> 
B28: =IF(MIDIA!D28="","",MIDIA!D28) ->  | O28: 0 | AA28: =IFERROR(VLOOKUP(B28,MIDIA!$D$15:$E$30,2,0),"") -> 
B29: =IF(MIDIA!D29="","",MIDIA!D29) ->  | O29: 0 | AA29: =IFERROR(VLOOKUP(B29,MIDIA!$D$15:$E$30,2,0),"") -> 
B30: =IF(MIDIA!D30="","",MIDIA!D30) ->  | O30: 0 | AA30: =IFERROR(VLOOKUP(B30,MIDIA!$D$15:$E$30,2,0),"") -> 

Sheet CUSTOS
B12: Promoção - Custos Insira os custos realizados para cada mídia cadastrada.
B14: Orçamento | C14: Janeiro | D14: Fevereiro | E14: Março | F14: Abril | G14: Maio | H14: Junho | I14: Julho | J14: Agosto | K14: Setembro | L14: Outubro | M14: Novembro | N14: Dezembro | O14: Total
B15: =IF(MIDIA!D15="","",MIDIA!D15) -> Redes Sociais | C15: 50 | D15: 200 | E15: 200 | F15: 200 | G15: 200 | H15: 200 | I15: 200 | J15: 200 | K15: 200 | L15: 200 | M15: 200 | N15: 200 | O15: =SUM(C15:N15) -> 2250 | AA15: =IFERROR(VLOOKUP(B15,MIDIA!$D$15:$E$30,2,0),"") -> Online
B16: =IF(MIDIA!D16="","",MIDIA!D16) -> Revistas | C16: 100 | D16: 80 | E16: 120 | F16: 120 | G16: 130 | H16: 140 | I16: 150 | J16: 160 | K16: 170 | L16: 180 | M16: 190 | N16: 200 | O16: =SUM(C16:N16) -> 1740 | AA16: =IFERROR(VLOOKUP(B16,MIDIA!$D$15:$E$30,2,0),"") -> Offline
B17: =IF(MIDIA!D17="","",MIDIA!D17) -> Jornais | O17: 0 | AA17: =IFERROR(VLOOKUP(B17,MIDIA!$D$15:$E$30,2,0),"") -> Offline
B18: =IF(MIDIA!D18="","",MIDIA!D18) -> Loja Física | C18: 200 | D18: 200 | O18: 400 | AA18: =IFERROR(VLOOKUP(B18,MIDIA!$D$15:$E$30,2,0),"") -> Offline
B19: =IF(MIDIA!D19="","",MIDIA!D19) -> Site | C19: 100 | D19: 100 | E19: 100 | F19: 100 | G19: 100 | H19: 100 | I19: 100 | J19: 100 | K19: 100 | L19: 100 | M19: 100 | N19: 100 | O19: 1200 | AA19: =IFERROR(VLOOKUP(B19,MIDIA!$D$15:$E$30,2,0),"") -> Online
B20: =IF(MIDIA!D20="","",MIDIA!D20) ->  | O20: 0 | AA20: =IFERROR(VLOOKUP(B20,MIDIA!$D$15:$E$30,2,0),"") -> 
B21: =IF(MIDIA!D21="","",MIDIA!D21) ->  | O21: 0 | AA21: =IFERROR(VLOOKUP(B21,MIDIA!$D$15:$E$30,2,0),"") -> 
B22: =IF(MIDIA!D22="","",MIDIA!D22) ->  | O22: 0 | AA22: =IFERROR(VLOOKUP(B22,MIDIA!$D$15:$E$30,2,0),"") -> 
B23: =IF(MIDIA!D23="","",MIDIA!D23) ->  | O23: 0 | AA23: =IFERROR(VLOOKUP(B23,MIDIA!$D$15:$E$30,2,0),"") -> 
B24: =IF(MIDIA!D24="","",MIDIA!D24) ->  | O24: 0 | AA24: =IFERROR(VLOOKUP(B24,MIDIA!$D$15:$E$30,2,0),"") -> 
B25: =IF(MIDIA!D25="","",MIDIA!D25) ->  | O25: 0 | AA25: =IFERROR(VLOOKUP(B25,MIDIA!$D$15:$E$30,2,0),"") -> 
B26: =IF(MIDIA!D26="","",MIDIA!D26) ->  | O26: 0 | AA26: =IFERROR(VLOOKUP(B26,MIDIA!$D$15:$E$30,2,0),"") -> 
B27: =IF(MIDIA!D27="","",MIDIA!D27) ->  | O27: 0 | AA27: =IFERROR(VLOOKUP(B27,MIDIA!$D$15:$E$30,2,0),"") -> 
B28: =IF(MIDIA!D28="","",MIDIA!D28) ->  | O28: 0 | AA28: =IFERROR(VLOOKUP(B28,MIDIA!$D$15:$E$30,2,0),"") -> 
B29: =IF(MIDIA!D29="","",MIDIA!D29) ->  | O29: 0 | AA29: =IFERROR(VLOOKUP(B29,MIDIA!$D$15:$E$30,2,0),"") -> 
B30: =IF(MIDIA!D30="","",MIDIA!D30) ->  | O30: 0 | AA30: =IFERROR(VLOOKUP(B30,MIDIA!$D$15:$E$30,2,0),"") -> 

Sheet RECEITAS
B12: Promoção - Receitas Insira as receitas que obteve para cada mídia cadastrada. Essas receitas são o retorno dos investimentos realizados.
B14: Orçamento | C14: Janeiro | D14: Fevereiro | E14: Março | F14: Abril | G14: Maio | H14: Junho | I14: Julho | J14: Agosto | K14: Setembro | L14: Outubro | M14: Novembro | N14: Dezembro | O14: Total
B15: =IF(MIDIA!D15="","",MIDIA!D15) -> Redes Sociais | C15: 1000 | D15: 1000 | E15: 1000 | F15: 1000 | G15: 1000 | H15: 1000 | I15: 1000 | J15: 1000 | K15: 1000 | L15: 1000 | M15: 1000 | N15: 1000 | O15: =SUM(C15:N15) -> 12000 | AA15: =IFERROR(VLOOKUP(B15,MIDIA!$D$15:$E$30,2,0),"") -> Online
B16: =IF(MIDIA!D16="","",MIDIA!D16) -> Revistas | C16: 500 | D16: 500 | E16: 500 | F16: 500 | G16: 500 | H16: 500 | I16: 500 | J16: 500 | K16: 500 | L16: 500 | M16: 500 | N16: 500 | O16: =SUM(C16:N16) -> 6000 | AA16: =IFERROR(VLOOKUP(B16,MIDIA!$D$15:$E$30,2,0),"") -> Offline
B17: =IF(MIDIA!D17="","",MIDIA!D17) -> Jornais | O17: 0 | AA17: =IFERROR(VLOOKUP(B17,MIDIA!$D$15:$E$30,2,0),"") -> Offline
B18: =IF(MIDIA!D18="","",MIDIA!D18) -> Loja Física | C18: 50 | D18: 50 | E18: 50 | F18: 50 | G18: 50 | H18: 50 | I18: 50 | J18: 50 | K18: 50 | L18: 50 | M18: 50 | N18: 50 | O18: 600 | AA18: =IFERROR(VLOOKUP(B18,MIDIA!$D$15:$E$30,2,0),"") -> Offline
B19: =IF(MIDIA!D19="","",MIDIA!D19) -> Site | C19: 300 | D19: 300 | E19: 300 | F19: 300 | G19: 300 | H19: 300 | I19: 300 | J19: 300 | K19: 300 | L19: 300 | M19: 300 | N19: 300 | O19: 3600 | AA19: =IFERROR(VLOOKUP(B19,MIDIA!$D$15:$E$30,2,0),"") -> Online
B20: =IF(MIDIA!D20="","",MIDIA!D20) ->  | O20: 0 | AA20: =IFERROR(VLOOKUP(B20,MIDIA!$D$15:$E$30,2,0),"") -> 
B21: =IF(MIDIA!D21="","",MIDIA!D21) ->  | O21: 0 | AA21: =IFERROR(VLOOKUP(B21,MIDIA!$D$15:$E$30,2,0),"") -> 
B22: =IF(MIDIA!D22="","",MIDIA!D22) ->  | O22: 0 | AA22: =IFERROR(VLOOKUP(B22,MIDIA!$D$15:$E$30,2,0),"") -> 
B23: =IF(MIDIA!D23="","",MIDIA!D23) ->  | O23: 0 | AA23: =IFERROR(VLOOKUP(B23,MIDIA!$D$15:$E$30,2,0),"") -> 
B24: =IF(MIDIA!D24="","",MIDIA!D24) ->  | O24: 0 | AA24: =IFERROR(VLOOKUP(B24,MIDIA!$D$15:$E$30,2,0),"") -> 
B25: =IF(MIDIA!D25="","",MIDIA!D25) ->  | O25: 0 | AA25: =IFERROR(VLOOKUP(B25,MIDIA!$D$15:$E$30,2,0),"") -> 
B26: =IF(MIDIA!D26="","",MIDIA!D26) ->  | O26: 0 | AA26: =IFERROR(VLOOKUP(B26,MIDIA!$D$15:$E$30,2,0),"") -> 
B27: =IF(MIDIA!D27="","",MIDIA!D27) ->  | O27: 0 | AA27: =IFERROR(VLOOKUP(B27,MIDIA!$D$15:$E$30,2,0),"") -> 
B28: =IF(MIDIA!D28="","",MIDIA!D28) ->  | O28: 0 | AA28: =IFERROR(VLOOKUP(B28,MIDIA!$D$15:$E$30,2,0),"") -> 
B29: =IF(MIDIA!D29="","",MIDIA!D29) ->  | O29: 0 | AA29: =IFERROR(VLOOKUP(B29,MIDIA!$D$15:$E$30,2,0),"") -> 
B30: =IF(MIDIA!D30="","",MIDIA!D30) ->  | O30: 0 | AA30: =IFERROR(VLOOKUP(B30,MIDIA!$D$15:$E$30,2,0),"") -> 

Sheet CRONOGRAMA
B12: Cronograma Insira as atividades programadas por mídia.
E14: Janeiro | I14: Fevereiro | M14: Março | Q14: Abril | U14: Maio | Y14: Junho | AC14: Julho | AG14: Agosto | AK14: Setembro | AO14: Outubro | AS14: Novembro | AW14: Dezembro
B15: Mídia | C15: Orçamento | D15: Duração (em semanas) | E15: Semana 1 | F15: Semana 2 | G15: Semana 3 | H15: Semana 4 | I15: Semana 5 | J15: Semana 6 | K15: Semana 7 | L15: Semana 8 | M15: Semana 9 | N15: Semana 10 | O15: Semana 11 | P15: Semana 12 | Q15: Semana 13 | R15: Semana 14 | S15: Semana 15 | T15: Semana 16 | U15: Semana 17 | V15: Semana 18 | W15: Semana 19 | X15: Semana 20 | Y15: Semana 21 | Z15: Semana 22 | AA15: Semana 23 | AB15: Semana 24 | AC15: Semana 25 | AD15: Semana 26 | AE15: Semana 27 | AF15: Semana 28 | AG15: Semana 29 | AH15: Semana 30 | AI15: Semana 31 | AJ15: Semana 32 | AK15: Semana 33 | AL15: Semana 34 | AM15: Semana 35 | AN15: Semana 36 | AO15: Semana 37 | AP15: Semana 38 | AQ15: Semana 39 | AR15: Semana 40 | AS15: Semana 41 | AT15: Semana 42 | AU15: Semana 43 | AV15: Semana 44 | AW15: Semana 45 | AX15: Semana 46 | AY15: Semana 47 | AZ15: Semana 48
B16: =IF(MIDIA!D15="","",MIDIA!D15) -> Redes Sociais | C16: =ORÇAMENTO!O15 -> 1400 | D16: =IF(B16="","",COUNTA(E16:AZ16)) -> 26 | E16: Programada | I16: Não Realizada | M16: Não Realizada | O16: Programada | Q16: Não Realizada | S16: Programada | U16: Realizada | X16: Programada | Y16: Programada | Z16: Realizada | AB16: Realizada | AC16: Realizada | AG16: Programada | AH16: Realizada | AJ16: Não Realizada | AK16: Não Realizada | AM16: Realizada | AN16: Programada | AO16: Não Realizada | AP16: Realizada | AQ16: Não Realizada | AR16: Não Realizada | AS16: Realizada | AU16: Não Realizada | AW16: Não Realizada | AZ16: Realizada
B17: =IF(MIDIA!D16="","",MIDIA!D16) -> Revistas | C17: =ORÇAMENTO!O16 -> 600 | D17: =IF(B17="","",COUNTA(E17:AZ17)) -> 19 | E17: Não Realizada | F17: Realizada | G17: Não Realizada | H17: Programada | N17: Realizada | P17: Não Realizada | R17: Não Realizada | T17: Programada | V17: Realizada | W17: Não Realizada | Y17: Não Realizada | AA17: Não Realizada | AD17: Não Realizada | AF17: Não Realizada | AL17: Não Realizada | AT17: Realizada | AV17: Programada | AX17: Realizada | AY17: Programada
B18: =IF(MIDIA!D17="","",MIDIA!D17) -> Jornais | C18: =ORÇAMENTO!O17 -> 360 | D18: 7 | E18: Realizada | F18: Realizada | I18: Não Realizada | J18: Não Realizada | AE18: Não Realizada | AH18: Realizada | AI18: Programada
B19: =IF(MIDIA!D18="","",MIDIA!D18) -> Loja Física | C19: =ORÇAMENTO!O18 -> 3600 | D19: 2 | F19: Realizada | J19: Programada
B20: =IF(MIDIA!D19="","",MIDIA!D19) -> Site | C20: =ORÇAMENTO!O19 -> 1800 | D20: 0
B21: =IF(MIDIA!D20="","",MIDIA!D20) ->  | C21: =ORÇAMENTO!O20 -> 0
B22: =IF(MIDIA!D21="","",MIDIA!D21) ->  | C22: =ORÇAMENTO!O21 -> 0
B23: =IF(MIDIA!D22="","",MIDIA!D22) ->  | C23: =ORÇAMENTO!O22 -> 0 | AA23: =IFERROR(VLOOKUP(B23,MIDIA!$D$15:$E$30,2,0),"") -> 
B24: =IF(MIDIA!D23="","",MIDIA!D23) ->  | C24: =ORÇAMENTO!O23 -> 0 | AA24: =IFERROR(VLOOKUP(B24,MIDIA!$D$15:$E$30,2,0),"") -> 
B25: =IF(MIDIA!D24="","",MIDIA!D24) ->  | C25: =ORÇAMENTO!O24 -> 0 | AA25: =IFERROR(VLOOKUP(B25,MIDIA!$D$15:$E$30,2,0),"") -> 
B26: =IF(MIDIA!D25="","",MIDIA!D25) ->  | C26: =ORÇAMENTO!O25 -> 0 | AA26: =IFERROR(VLOOKUP(B26,MIDIA!$D$15:$E$30,2,0),"") -> 
B27: =IF(MIDIA!D26="","",MIDIA!D26) ->  | C27: =ORÇAMENTO!O26 -> 0 | AA27: =IFERROR(VLOOKUP(B27,MIDIA!$D$15:$E$30,2,0),"") -> 
B28: =IF(MIDIA!D27="","",MIDIA!D27) ->  | C28: =ORÇAMENTO!O27 -> 0 | AA28: =IFERROR(VLOOKUP(B28,MIDIA!$D$15:$E$30,2,0),"") -> 
B29: =IF(MIDIA!D28="","",MIDIA!D28) ->  | C29: =ORÇAMENTO!O28 -> 0 | AA29: =IFERROR(VLOOKUP(B29,MIDIA!$D$15:$E$30,2,0),"") -> 
B30: =IF(MIDIA!D29="","",MIDIA!D29) ->  | C30: =ORÇAMENTO!O29 -> 0 | AA30: =IFERROR(VLOOKUP(B30,MIDIA!$D$15:$E$30,2,0),"") -> 
B31: =IF(MIDIA!D30="","",MIDIA!D30) ->  | C31: =ORÇAMENTO!O30 -> 0 | AA31: =IFERROR(VLOOKUP(B31,MIDIA!$D$15:$E$30,2,0),"") -> 

Sheet RELAT_MIDIAS
B12: Mídias | C12: Orçamento | D12: Custos | E12: Receitas | F12: % do Orçamento Utilizado | G12: % da Receita em Relação ao Custo | H12: Resultado
B13: =IF(MIDIA!D15="","",MIDIA!D15) -> Redes Sociais | C13: =IF(B13="","",ORÇAMENTO!O15) -> 1400 | D13: =IF(B13="","",CUSTOS!O15) -> 2250 | E13: =IF(B13="","",RECEITAS!O15) -> 12000 | F13: =IF(B13="","",IF(C13=0,"Não orçado",IFERROR(IF((D13/C13)>1,1,D13/C13),""))) -> 1 | G13: =IF(B13="","",IF(E13=0,"Não apurado",IFERROR(E13/D13,0))) -> 5.333333333 | H13: =IF(B13="","",E13-D13) -> 9750
B14: =IF(MIDIA!D16="","",MIDIA!D16) -> Revistas | C14: =IF(B14="","",ORÇAMENTO!O16) -> 600 | D14: =IF(B14="","",CUSTOS!O16) -> 1740 | E14: =IF(B14="","",RECEITAS!O16) -> 6000 | F14: =IF(B14="","",IF(C14=0,"Não orçado",IFERROR(IF((D14/C14)>1,1,D14/C14),""))) -> 1 | G14: =IF(B14="","",IF(E14=0,"Não apurado",IFERROR(E14/D14,0))) -> 3.448275862 | H14: =IF(B14="","",E14-D14) -> 4260
B15: =IF(MIDIA!D17="","",MIDIA!D17) -> Jornais | C15: =IF(B15="","",ORÇAMENTO!O17) -> 360 | D15: =IF(B15="","",CUSTOS!O17) -> 0 | E15: =IF(B15="","",RECEITAS!O17) -> 0 | F15: 0 | G15: Não apurado | H15: 0
B16: =IF(MIDIA!D18="","",MIDIA!D18) -> Loja Física | C16: =IF(B16="","",ORÇAMENTO!O18) -> 3600 | D16: =IF(B16="","",CUSTOS!O18) -> 400 | E16: =IF(B16="","",RECEITAS!O18) -> 600 | F16: 0.1111111111 | G16: 1.5 | H16: 200
B17: =IF(MIDIA!D19="","",MIDIA!D19) -> Site | C17: =IF(B17="","",ORÇAMENTO!O19) -> 1800 | D17: =IF(B17="","",CUSTOS!O19) -> 1200 | E17: =IF(B17="","",RECEITAS!O19) -> 3600 | F17: 0.6666666667 | G17: 3 | H17: 2400
B18: =IF(MIDIA!D20="","",MIDIA!D20) ->  | C18: =IF(B18="","",ORÇAMENTO!O20) ->  | D18: =IF(B18="","",CUSTOS!O20) ->  | E18: =IF(B18="","",RECEITAS!O20) -> 
B19: =IF(MIDIA!D21="","",MIDIA!D21) ->  | C19: =IF(B19="","",ORÇAMENTO!O21) ->  | D19: =IF(B19="","",CUSTOS!O21) ->  | E19: =IF(B19="","",RECEITAS!O21) -> 
B20: =IF(MIDIA!D22="","",MIDIA!D22) ->  | C20: =IF(B20="","",ORÇAMENTO!O22) ->  | D20: =IF(B20="","",CUSTOS!O22) ->  | E20: =IF(B20="","",RECEITAS!O22) -> 
B21: =IF(MIDIA!D23="","",MIDIA!D23) ->  | C21: =IF(B21="","",ORÇAMENTO!O23) ->  | D21: =IF(B21="","",CUSTOS!O23) ->  | E21: =IF(B21="","",RECEITAS!O23) -> 
B22: =IF(MIDIA!D24="","",MIDIA!D24) ->  | C22: =IF(B22="","",ORÇAMENTO!O24) ->  | D22: =IF(B22="","",CUSTOS!O24) ->  | E22: =IF(B22="","",RECEITAS!O24) -> 
B23: =IF(MIDIA!D25="","",MIDIA!D25) ->  | C23: =IF(B23="","",ORÇAMENTO!O25) ->  | D23: =IF(B23="","",CUSTOS!O25) ->  | E23: =IF(B23="","",RECEITAS!O25) -> 
B24: =IF(MIDIA!D26="","",MIDIA!D26) ->  | C24: =IF(B24="","",ORÇAMENTO!O26) ->  | D24: =IF(B24="","",CUSTOS!O26) ->  | E24: =IF(B24="","",RECEITAS!O26) -> 
B25: =IF(MIDIA!D27="","",MIDIA!D27) ->  | C25: =IF(B25="","",ORÇAMENTO!O27) ->  | D25: =IF(B25="","",CUSTOS!O27) ->  | E25: =IF(B25="","",RECEITAS!O27) -> 
B26: =IF(MIDIA!D28="","",MIDIA!D28) ->  | C26: =IF(B26="","",ORÇAMENTO!O28) ->  | D26: =IF(B26="","",CUSTOS!O28) ->  | E26: =IF(B26="","",RECEITAS!O28) -> 
B27: =IF(MIDIA!D29="","",MIDIA!D29) ->  | C27: =IF(B27="","",ORÇAMENTO!O29) ->  | D27: =IF(B27="","",CUSTOS!O29) ->  | E27: =IF(B27="","",RECEITAS!O29) -> 
B28: =IF(MIDIA!D30="","",MIDIA!D30) ->  | C28: =IF(B28="","",ORÇAMENTO!O30) ->  | D28: =IF(B28="","",CUSTOS!O30) ->  | E28: =IF(B28="","",RECEITAS!O30) -> 
B29: Total | C29: =SUM(C13:C28) -> 7760 | D29: =SUM(D13:D28) -> 5590 | E29: 22200 | F29: =IF(C29=0,"Não orçado",IFERROR(IF((D29/C29)>1,1,D29/C29),"")) -> 0.7203608247 | G29: =IF(E29=0,"Não apurado",IFERROR(E29/D29,0)) -> 3.97137746 | H29: =E29-D29 -> 16610
B31: Tipo de Mídias | C31: Orçamento | D31: Custos | E31: Receitas | F31: % do Orçamento Utilizado | G31: % da Receita em Relação ao Custo | H31: Resultado
B32: =IF(MIDIA!B15="","",MIDIA!B15) -> Online | C32: =IF(B32="","",SUMIF(ORÇAMENTO!$AA$15:$AA$30,RELAT_MIDIAS!B32,ORÇAMENTO!$O$15:$O$30)) -> 3200 | D32: =IF(B32="","",SUMIF(CUSTOS!$AA$15:$AA$30,RELAT_MIDIAS!B32,CUSTOS!$O$15:$O$30)) -> 3450 | E32: =IF(B32="","",SUMIF(RECEITAS!$AA$15:$AA$30,RELAT_MIDIAS!B32,RECEITAS!$O$15:$O$30)) -> 15600 | F32: =IF(B32="","",IF(C32=0,"Não orçado",IFERROR(IF((D32/C32)>1,1,D32/C32),""))) -> 1 | G32: =IF(B32="","",IF(E32=0,"Não apurado",IFERROR(E32/D32,0))) -> 4.52173913 | H32: =IF(B32="","",E32-D32) -> 12150
B33: =IF(MIDIA!B16="","",MIDIA!B16) -> Offline | C33: =IF(B33="","",SUMIF(ORÇAMENTO!$AA$15:$AA$30,RELAT_MIDIAS!B33,ORÇAMENTO!$O$15:$O$30)) -> 4560 | D33: =IF(B33="","",SUMIF(CUSTOS!$AA$15:$AA$30,RELAT_MIDIAS!B33,CUSTOS!$O$15:$O$30)) -> 2140 | E33: =IF(B33="","",SUMIF(RECEITAS!$AA$15:$AA$30,RELAT_MIDIAS!B33,RECEITAS!$O$15:$O$30)) -> 6600 | F33: =IF(B33="","",IF(C33=0,"Não orçado",IFERROR(IF((D33/C33)>1,1,D33/C33),""))) -> 0.4692982456 | G33: =IF(B33="","",IF(E33=0,"Não apurado",IFERROR(E33/D33,0))) -> 3.08411215 | H33: =IF(B33="","",E33-D33) -> 4460
B34: =IF(MIDIA!B17="","",MIDIA!B17) ->  | C34: =IF(B34="","",SUMIF(ORÇAMENTO!$AA$15:$AA$30,RELAT_MIDIAS!B34,ORÇAMENTO!$O$15:$O$30)) ->  | D34: =IF(B34="","",SUMIF(CUSTOS!$AA$15:$AA$30,RELAT_MIDIAS!B34,CUSTOS!$O$15:$O$30)) ->  | E34: =IF(B34="","",SUMIF(RECEITAS!$AA$15:$AA$30,RELAT_MIDIAS!B34,RECEITAS!$O$15:$O$30)) -> 
B35: =IF(MIDIA!B18="","",MIDIA!B18) ->  | C35: =IF(B35="","",SUMIF(ORÇAMENTO!$AA$15:$AA$30,RELAT_MIDIAS!B35,ORÇAMENTO!$O$15:$O$30)) ->  | D35: =IF(B35="","",SUMIF(CUSTOS!$AA$15:$AA$30,RELAT_MIDIAS!B35,CUSTOS!$O$15:$O$30)) ->  | E35: =IF(B35="","",SUMIF(RECEITAS!$AA$15:$AA$30,RELAT_MIDIAS!B35,RECEITAS!$O$15:$O$30)) -> 
B36: =IF(MIDIA!B19="","",MIDIA!B19) ->  | C36: =IF(B36="","",SUMIF(ORÇAMENTO!$AA$15:$AA$30,RELAT_MIDIAS!B36,ORÇAMENTO!$O$15:$O$30)) ->  | D36: =IF(B36="","",SUMIF(CUSTOS!$AA$15:$AA$30,RELAT_MIDIAS!B36,CUSTOS!$O$15:$O$30)) ->  | E36: =IF(B36="","",SUMIF(RECEITAS!$AA$15:$AA$30,RELAT_MIDIAS!B36,RECEITAS!$O$15:$O$30)) -> 

Sheet RELAT_INDIV
B12: Selecione uma mídia: | C12: Revistas
C13: 2 | D13: 3 | E13: 4 | F13: 5 | G13: 6 | H13: 7 | I13: 8 | J13: 9 | K13: 10 | L13: 11 | M13: 12 | N13: 13 | O13: 14
C14: Janeiro | D14: Fevereiro | E14: Março | F14: Abril | G14: Maio | H14: Junho | I14: Julho | J14: Agosto | K14: Setembro | L14: Outubro | M14: Novembro | N14: Dezembro | O14: Total
B15: Orçamento | C15: =IFERROR(VLOOKUP($C12,ORÇAMENTO!$B$15:$O$30,C$13,0),"") -> 50 | D15: =IFERROR(VLOOKUP($C12,ORÇAMENTO!$B$15:$O$30,D$13,0),"") -> 50 | E15: =IFERROR(VLOOKUP($C12,ORÇAMENTO!$B$15:$O$30,E$13,0),"") -> 50 | F15: =IFERROR(VLOOKUP($C12,ORÇAMENTO!$B$15:$O$30,F$13,0),"") -> 50 | G15: =IFERROR(VLOOKUP($C12,ORÇAMENTO!$B$15:$O$30,G$13,0),"") -> 50 | H15: =IFERROR(VLOOKUP($C12,ORÇAMENTO!$B$15:$O$30,H$13,0),"") -> 50 | I15: =IFERROR(VLOOKUP($C12,ORÇAMENTO!$B$15:$O$30,I$13,0),"") -> 50 | J15: =IFERROR(VLOOKUP($C12,ORÇAMENTO!$B$15:$O$30,J$13,0),"") -> 50 | K15: =IFERROR(VLOOKUP($C12,ORÇAMENTO!$B$15:$O$30,K$13,0),"") -> 50 | L15: =IFERROR(VLOOKUP($C12,ORÇAMENTO!$B$15:$O$30,L$13,0),"") -> 50 | M15: =IFERROR(VLOOKUP($C12,ORÇAMENTO!$B$15:$O$30,M$13,0),"") -> 50 | N15: =IFERROR(VLOOKUP($C12,ORÇAMENTO!$B$15:$O$30,N$13,0),"") -> 50 | O15: =SUM(C15:N15) -> 600
B16: Custos | C16: =IFERROR(VLOOKUP($C12,CUSTOS!$B$15:$O$30,C$13,0),"") -> 100 | D16: =IFERROR(VLOOKUP($C12,CUSTOS!$B$15:$O$30,D$13,0),"") -> 80 | E16: =IFERROR(VLOOKUP($C12,CUSTOS!$B$15:$O$30,E$13,0),"") -> 120 | F16: =IFERROR(VLOOKUP($C12,CUSTOS!$B$15:$O$30,F$13,0),"") -> 120 | G16: =IFERROR(VLOOKUP($C12,CUSTOS!$B$15:$O$30,G$13,0),"") -> 130 | H16: =IFERROR(VLOOKUP($C12,CUSTOS!$B$15:$O$30,H$13,0),"") -> 140 | I16: =IFERROR(VLOOKUP($C12,CUSTOS!$B$15:$O$30,I$13,0),"") -> 150 | J16: =IFERROR(VLOOKUP($C12,CUSTOS!$B$15:$O$30,J$13,0),"") -> 160 | K16: =IFERROR(VLOOKUP($C12,CUSTOS!$B$15:$O$30,K$13,0),"") -> 170 | L16: =IFERROR(VLOOKUP($C12,CUSTOS!$B$15:$O$30,L$13,0),"") -> 180 | M16: =IFERROR(VLOOKUP($C12,CUSTOS!$B$15:$O$30,M$13,0),"") -> 190 | N16: =IFERROR(VLOOKUP($C12,CUSTOS!$B$15:$O$30,N$13,0),"") -> 200 | O16: =SUM(C16:N16) -> 1740
B17: Receitas | C17: =IFERROR(VLOOKUP($C12,RECEITAS!$B$15:$O$30,C$13,0),"") -> 500 | D17: =IFERROR(VLOOKUP($C12,RECEITAS!$B$15:$O$30,D$13,0),"") -> 500 | E17: =IFERROR(VLOOKUP($C12,RECEITAS!$B$15:$O$30,E$13,0),"") -> 500 | F17: =IFERROR(VLOOKUP($C12,RECEITAS!$B$15:$O$30,F$13,0),"") -> 500 | G17: =IFERROR(VLOOKUP($C12,RECEITAS!$B$15:$O$30,G$13,0),"") -> 500 | H17: =IFERROR(VLOOKUP($C12,RECEITAS!$B$15:$O$30,H$13,0),"") -> 500 | I17: =IFERROR(VLOOKUP($C12,RECEITAS!$B$15:$O$30,I$13,0),"") -> 500 | J17: =IFERROR(VLOOKUP($C12,RECEITAS!$B$15:$O$30,J$13,0),"") -> 500 | K17: =IFERROR(VLOOKUP($C12,RECEITAS!$B$15:$O$30,K$13,0),"") -> 500 | L17: =IFERROR(VLOOKUP($C12,RECEITAS!$B$15:$O$30,L$13,0),"") -> 500 | M17: =IFERROR(VLOOKUP($C12,RECEITAS!$B$15:$O$30,M$13,0),"") -> 500 | N17: =IFERROR(VLOOKUP($C12,RECEITAS!$B$15:$O$30,N$13,0),"") -> 500 | O17: 6000
B18: % do Orçamento Utilizado | C18: =IF(C15=0,"Não orçado",IFERROR(IF((C16/C15)>1,1,C16/C15),"")) -> 1 | D18: =IF(D15=0,"Não orçado",IFERROR(IF((D16/D15)>1,1,D16/D15),"")) -> 1 | E18: 1 | F18: 1 | G18: 1 | H18: 1 | I18: 1 | J18: 1 | K18: 1 | L18: 1 | M18: 1 | N18: 1 | O18: 1
B19: % da Receita em Relação ao Custo | C19: =IF(C17=0,"Não apurado",IFERROR(C17/C16,0)) -> 5 | D19: =IF(D17=0,"Não apurado",IFERROR(D17/D16,0)) -> 6.25 | E19: 4.166666667 | F19: 4.166666667 | G19: 3.846153846 | H19: 3.571428571 | I19: 3.333333333 | J19: 3.125 | K19: 2.941176471 | L19: 2.777777778 | M19: 2.631578947 | N19: 2.5 | O19: 3.448275862
B20: Resultado | C20: =C17-C16 -> 400 | D20: =D17-D16 -> 420 | E20: 380 | F20: 380 | G20: 370 | H20: 360 | I20: 350 | J20: 340 | K20: 330 | L20: 320 | M20: 310 | N20: 300 | O20: 4260

Sheet Dash
C38: Janeiro | D38: Fevereiro | E38: Março | F38: Abril | G38: Maio | H38: Junho | I38: Julho | J38: Agosto | K38: Setembro | L38: Outubro | M38: Novembro | N38: Dezembro
B39: Programada | C39: =COUNTIF(CRONOGRAMA!$E$16:$H$31,Dash!$B39) -> 2 | D39: =COUNTIF(CRONOGRAMA!$I$16:$L$31,Dash!$B39) -> 1 | E39: =COUNTIF(CRONOGRAMA!$M$16:$P$31,Dash!$B39) -> 1 | F39: =COUNTIF(CRONOGRAMA!$Q$16:$T$31,Dash!$B39) -> 2 | G39: =COUNTIF(CRONOGRAMA!$U$16:$X$31,Dash!$B39) -> 1 | H39: =COUNTIF(CRONOGRAMA!$Y$16:$AB$31,Dash!$B39) -> 1 | I39: =COUNTIF(CRONOGRAMA!$AC$16:$AF$31,Dash!$B39) -> 0 | J39: =COUNTIF(CRONOGRAMA!$AG$16:$AJ$31,Dash!$B39) -> 2 | K39: =COUNTIF(CRONOGRAMA!$AK$16:$AN$31,Dash!$B39) -> 1 | L39: =COUNTIF(CRONOGRAMA!$AO$16:$AR$31,Dash!$B39) -> 0 | M39: =COUNTIF(CRONOGRAMA!$AS$16:$AV$31,Dash!$B39) -> 1 | N39: =COUNTIF(CRONOGRAMA!$AW$16:$AZ$31,Dash!$B39) -> 1
B40: Não Realizada | C40: =COUNTIF(CRONOGRAMA!$E$16:$H$31,Dash!$B40) -> 2 | D40: =COUNTIF(CRONOGRAMA!$I$16:$L$31,Dash!$B40) -> 3 | E40: =COUNTIF(CRONOGRAMA!$M$16:$P$31,Dash!$B40) -> 2 | F40: =COUNTIF(CRONOGRAMA!$Q$16:$T$31,Dash!$B40) -> 2 | G40: =COUNTIF(CRONOGRAMA!$U$16:$X$31,Dash!$B40) -> 1 | H40: =COUNTIF(CRONOGRAMA!$Y$16:$AB$31,Dash!$B40) -> 2 | I40: =COUNTIF(CRONOGRAMA!$AC$16:$AF$31,Dash!$B40) -> 3 | J40: =COUNTIF(CRONOGRAMA!$AG$16:$AJ$31,Dash!$B40) -> 1 | K40: =COUNTIF(CRONOGRAMA!$AK$16:$AN$31,Dash!$B40) -> 2 | L40: =COUNTIF(CRONOGRAMA!$AO$16:$AR$31,Dash!$B40) -> 3 | M40: =COUNTIF(CRONOGRAMA!$AS$16:$AV$31,Dash!$B40) -> 1 | N40: =COUNTIF(CRONOGRAMA!$AW$16:$AZ$31,Dash!$B40) -> 1
B41: Realizada | C41: =COUNTIF(CRONOGRAMA!$E$16:$H$31,Dash!$B41) -> 4 | D41: =COUNTIF(CRONOGRAMA!$I$16:$L$31,Dash!$B41) -> 0 | E41: =COUNTIF(CRONOGRAMA!$M$16:$P$31,Dash!$B41) -> 1 | F41: =COUNTIF(CRONOGRAMA!$Q$16:$T$31,Dash!$B41) -> 0 | G41: =COUNTIF(CRONOGRAMA!$U$16:$X$31,Dash!$B41) -> 2 | H41: =COUNTIF(CRONOGRAMA!$Y$16:$AB$31,Dash!$B41) -> 2 | I41: =COUNTIF(CRONOGRAMA!$AC$16:$AF$31,Dash!$B41) -> 1 | J41: =COUNTIF(CRONOGRAMA!$AG$16:$AJ$31,Dash!$B41) -> 2 | K41: =COUNTIF(CRONOGRAMA!$AK$16:$AN$31,Dash!$B41) -> 1 | L41: =COUNTIF(CRONOGRAMA!$AO$16:$AR$31,Dash!$B41) -> 1 | M41: =COUNTIF(CRONOGRAMA!$AS$16:$AV$31,Dash!$B41) -> 2 | N41: =COUNTIF(CRONOGRAMA!$AW$16:$AZ$31,Dash!$B41) -> 2
B63: Rótulos de Linha | C63: Soma de Orçamento | F63: Rótulos de Linha | G63: Soma de Custos | J63: Rótulos de Linha | K63: Soma de Receitas | N63: Rótulos de Linha | O63: Soma de Resultado
C64: 0 | G64: 0 | K64: 0 | O64: 0
B65: Jornais | C65: 360 | F65: Jornais | G65: 0 | J65: Jornais | K65: 0 | N65: Jornais | O65: 0
B66: Revistas | C66: 600 | F66: Loja Física | G66: 400 | J66: Loja Física | K66: 600 | N66: Loja Física | O66: 200
B67: Redes Sociais | C67: 1400 | F67: Site | G67: 1200 | J67: Site | K67: 3600 | N67: Site | O67: 2400
B68: Site | C68: 1800 | F68: Revistas | G68: 1740 | J68: Revistas | K68: 6000 | N68: Revistas | O68: 4260
B69: Loja Física | C69: 3600 | F69: Redes Sociais | G69: 2250 | J69: Redes Sociais | K69: 12000 | N69: Redes Sociais | O69: 9750
B70: Total Geral | C70: 7760 | F70: Total Geral | G70: 5590 | J70: Total Geral | K70: 22200 | N70: Total Geral | O70: 16610

Sheet Instruções
